fUST/lending_fUST_20250518
["ID","MTS","AMOUNT","RATE_DAILY","PERIOD"]
[361380043,1747534238548,-250.85,0.00012329,2]
[361380044,1747534238557,-209.04,0.00012329,2]
[361380045,1747534238566,-174.2,0.00012329,2]
[361380046,1747534238575,-871.02,0.00012329,2]
[361380047,1747534238586,-250.0,0.00012616,2]
[361380048,1747534238595,-183.0992467,0.00012758,2]
[361380049,1747534238605,-420.0,0.00013529,2]
[361380050,1747534238614,-640.38451284,0.00013532,2]
[361380051,1747534238623,-250.0,0.00013537,2]
[361380052,1747534238632,-157.72624046,0.00013698,2]
[361380114,1747534243664,-180.29438997,0.00013698,2]
[361380115,1747534243674,-459.33464436,0.00013698,2]
[361380116,1747534243683,-76.93277927,0.00013698,2]
[361380117,1747534243719,-164.15451415,0.00013698,2]
[361380118,1747534243728,-452.41372131,0.00013698,2]
[361380119,1747534243737,-546.7536063,0.00013698,2]
[361380120,1747534243747,-459.54373689,0.00013698,2]
[361380121,1747534243756,-452.07949899,0.00013698,2]
[361380122,1747534243765,-455.3355557,0.00013698,2]
[361380123,1747534243775,-226.35867665,0.00013698,2]
[361380124,1747534243784,-234.58782354,0.00013698,2]
[361380125,1747534243794,-507.65016216,0.00013698,2]
[361380126,1747534243803,-413.96553235,0.00013698,2]
[361380128,1747534243812,-41.08677894,0.00013698,2]
[361380130,1747534246577,-363.36374207,0.00013698,2]
[361380131,1747534246587,-455.16239462,0.00013698,2]
[361380132,1747534246596,-409.68396957,0.00013698,2]
[361380133,1747534246606,-463.93701356,0.00013698,2]
[361380134,1747534246615,-454.59048513,0.00013698,2]
[361380135,1747534246624,-457.02914745,0.00013698,2]
[361380136,1747534246633,-370.53750184,0.00013698,2]
[361380137,1747534246642,-332.45971836,0.00013698,2]
[361380138,1747534246652,-454.57437026,0.00013698,2]
[361380139,1747534246661,-405.37930245,0.00013698,2]
[361380140,1747534246670,-450.94580855,0.00013698,2]
[361380141,1747534246679,-452.98877901,0.00013698,2]
[361380142,1747534246688,-456.29950587,0.00013698,2]
[361380143,1747534246697,-402.154664,0.00013698,2]
[361380144,1747534246706,-467.73355444,0.00013698,2]
[361380145,1747534246715,-503.47987014,0.00013698,2]
[361380146,1747534246723,-457.52518996,0.00013698,2]
[361380147,1747534246732,-207.2516467,0.00013698,2]
[361380148,1747534246742,-456.39937055,0.00013698,2]
[361380149,1747534246750,-357.20816131,0.00013698,2]
[361380150,1747534246759,-450.0,0.00013698,2]
[361380151,1747534246768,-454.12046204,0.00013698,2]
[361380152,1747534246777,-458.13833885,0.00013698,2]
[361380153,1747534246787,-456.0670812,0.00013698,2]
[361380154,1747534246796,-450.0,0.00013698,2]
[361380155,1747534246805,-453.80293826,0.00013698,2]
[361380156,1747534246814,-452.68534863,0.00013698,2]
[361380157,1747534246824,-450.0,0.00013698,2]
[361380158,1747534246833,-450.0,0.00013698,2]
[361380159,1747534246842,-902.27,0.00013698,2]
[361380160,1747534246999,-450.0,0.00013698,2]
[361380161,1747534247010,-450.0,0.00013698,2]
[361380162,1747534247022,-450.0,0.00013698,2]
[361380163,1747534247032,-450.0,0.00013698,2]
[361380164,1747534247041,-450.0,0.00013698,2]
[361380165,1747534247051,-525.94524897,0.00013698,2]
[361380167,1747534247061,-450.0,0.00013698,2]
[361380169,1747534247071,-450.0,0.00013698,2]
[361380170,1747534247079,-62.44935046,0.00013698,2]
[361380172,1747534247094,-315.07560503,0.00013698,2]
[361380173,1747534247103,-450.0,0.00013698,2]
[361380174,1747534247113,-862.47,0.00013698,2]
[361380176,1747534247122,-450.0,0.00013698,2]
[361380177,1747534247132,-456.54427498,0.00013698,2]
[361380178,1747534247142,-176.48387246,0.00013698,2]
[361380179,1747534247151,-450.0,0.00013698,2]
[361380180,1747534247161,-450.0,0.00013698,2]
[361380181,1747534247170,-367.01089988,0.00013698,2]
[361380182,1747534247179,-450.0,0.00013698,2]
[361380183,1747534247188,-450.0,0.00013698,2]
[361380184,1747534247197,-583.13,0.00013698,2]
[361380185,1747534247207,-589.68,0.00013698,2]
[361380186,1747534247216,-450.0,0.00013698,2]
[361380187,1747534247226,-450.0,0.00013698,2]
[361380188,1747534247235,-450.0,0.00013698,2]
[361380189,1747534247244,-450.0,0.00013698,2]
[361380190,1747534247253,-164.641787,0.00013699,2]
[361380191,1747534247262,-168.5635349,0.00013832,2]
[361380192,1747534247272,-500.0,0.00013832,2]
[361380193,1747534247281,-500.0,0.00013832,2]
[361380194,1747534247290,-170.09260954,0.00013832,2]
[361380195,1747534247299,-342.81460512,0.00013832,2]
[361380196,1747534247308,-500.0,0.00013832,2]
[361380197,1747534247318,-500.0,0.00013832,2]
[361380198,1747534247328,-500.0,0.00013832,2]
[361380199,1747534247338,-366.55385427,0.00013832,2]
[361380200,1747534247348,-500.0,0.00013832,2]
[361380201,1747534247357,-205.56718774,0.00013832,2]
[361380202,1747534247367,-500.0,0.00013832,2]
[361380203,1747534247376,-500.0,0.00013832,2]
[361380204,1747534247386,-500.0,0.00013832,2]
[361380205,1747534247395,-500.0,0.00013832,2]
[361380206,1747534247405,-500.0,0.00013832,2]
[361380207,1747534247414,-500.0,0.00013832,2]
[361380208,1747534247424,-500.0,0.00013832,2]
[361380209,1747534247433,-500.0,0.00013832,2]
[361380210,1747534247443,-500.0,0.00013832,2]
[361380211,1747534247452,-500.0,0.00013832,2]
[361380212,1747534247462,-225.04308893,0.00013832,2]
[361380213,1747534247471,-500.0,0.00013832,2]
[361380214,1747534247481,-500.0,0.00013832,2]
[361380215,1747534247491,-500.0,0.00013832,2]
[361380216,1747534247500,-500.0,0.00013832,2]
[361380217,1747534247510,-500.0,0.00013832,2]
[361380218,1747534247520,-500.0,0.00013832,2]
[361380219,1747534247529,-500.0,0.00013832,2]
[361380220,1747534247539,-500.0,0.00013832,2]
[361380221,1747534247548,-500.0,0.00013832,2]
[361380222,1747534247558,-500.0,0.00013832,2]
[361380223,1747534247567,-500.0,0.00013832,2]
[361380224,1747534247577,-500.0,0.00013832,2]
[361380225,1747534247586,-500.0,0.00013832,2]
[361380226,1747534247595,-500.0,0.00013832,2]
[361380227,1747534247605,-500.0,0.00013832,2]
[361380228,1747534247614,-500.0,0.00013832,2]
[361380229,1747534247624,-500.0,0.00013832,2]
[361380230,1747534247633,-500.0,0.00013832,2]
[361380231,1747534247643,-500.0,0.00013832,2]
[361380232,1747534247652,-500.0,0.00013832,2]
[361380233,1747534247661,-500.0,0.00013832,2]
[361380234,1747534247671,-500.0,0.00013832,2]
[361380235,1747534247680,-174.64632049,0.00013832,2]
[361380236,1747534247689,-500.0,0.00013832,2]
[361380237,1747534247698,-500.0,0.00013832,2]
[361380238,1747534247708,-500.0,0.00013832,2]
[361380239,1747534247717,-14589.06929885,0.00013833,2]
[361380240,1747534247726,-11208.60649098,0.00013833,3]
[361380241,1747534247735,-185.02334697,0.00013835,2]
[361380242,1747534247745,-450.0,0.00013835,2]
[361380243,1747534247754,-450.0,0.00013835,2]
[361380244,1747534247763,-902.27,0.00013835,2]
[361380245,1747534247772,-440.67200228,0.00013835,2]
[361380246,1747534247784,-9.32799772,0.00013835,2]
[361380247,1747534247793,-450.0,0.00013835,2]
[361380248,1747534247803,-450.0,0.00013835,2]
[361380249,1747534247812,-450.0,0.00013835,2]
[361380250,1747534247822,-450.0,0.00013835,2]
[361380251,1747534247832,-450.0,0.00013835,2]
[361380252,1747534247841,-591.25608667,0.00013835,2]
[361380253,1747534247850,-450.0,0.00013835,2]
[361380254,1747534247860,-862.47,0.00013835,2]
[361380255,1747534247869,-450.0,0.00013835,2]
[361380256,1747534247878,-450.0,0.00013835,2]
[361380257,1747534247887,-450.0,0.00013835,2]
[361380258,1747534247896,-450.0,0.00013835,2]
[361380259,1747534247906,-450.0,0.00013835,2]
[361380260,1747534247915,-583.13,0.00013835,2]
[361380261,1747534247924,-589.68,0.00013835,2]
[361380262,1747534247933,-450.0,0.00013835,2]
[361380263,1747534247942,-450.0,0.00013835,2]
[361380264,1747534247951,-459.47223641,0.00013835,2]
[361380265,1747534247960,-351.42855095,0.00013835,2]
[361380266,1747534247969,-179.2000328,0.000139,2]
[361380267,1747534247978,-576.6983949,0.000139,2]
[361380268,1747534247987,-318.1172864,0.000139,2]
[361380269,1747534247996,-154.1627373,0.000139,2]
[361380270,1747534248005,-3510.26245545,0.000139,2]
[361380271,1747534248015,-450.0,0.00013972,2]
[361380272,1747534248026,-450.0,0.00013972,2]
[361380273,1747534248035,-902.27,0.00013972,2]
[361380274,1747534248045,-450.0,0.00013972,2]
[361380275,1747534248054,-450.0,0.00013972,2]
[361380276,1747534248065,-450.0,0.00013972,2]
[361380277,1747534248074,-450.0,0.00013972,2]
[361380278,1747534248083,-450.0,0.00013972,2]
[361380279,1747534248094,-450.0,0.00013972,2]
[361380280,1747534248103,-556.39767904,0.00013972,2]
[361380281,1747534248113,-862.47,0.00013972,2]
[361380282,1747534248123,-450.0,0.00013972,2]
[361380283,1747534248132,-450.0,0.00013972,2]
[361380284,1747534248142,-450.0,0.00013972,2]
[361380285,1747534248151,-450.0,0.00013972,2]
[361380286,1747534248161,-450.0,0.00013972,2]
[361380287,1747534248170,-583.13,0.00013972,2]
[361380288,1747534248179,-589.68,0.00013972,2]
[361380289,1747534248190,-450.0,0.00013972,2]
[361380290,1747534248199,-450.0,0.00013972,2]
[361380291,1747534248208,-250.0,0.00013991,2]
[361380292,1747534248218,-306.1240614,0.00014,2]
[361380293,1747534248227,-160.0,0.00014048,2]
[361380294,1747534248236,-160.0,0.00014048,2]
[361380295,1747534248246,-314.4327999,0.00014048,2]
[361380296,1747534248255,-12636.50182523,0.00014048,2]
[361380297,1747534248264,-998.55070715,0.00014048,2]
[361380298,1747534248274,-160.0,0.00014048,2]
[361380299,1747534248283,-422.53311782,0.00014048,2]
[361380300,1747534248293,-160.0,0.00014048,2]
[361380301,1747534248302,-212.32903618,0.00014048,2]
[361380302,1747534248312,-450.0,0.00014109,2]
[361380303,1747534248321,-231.0773102,0.00014109,2]
[361380304,1747534248330,-902.27,0.00014109,2]
[361380305,1747534248340,-450.0,0.00014109,2]
[361380306,1747534248350,-450.0,0.00014109,2]
[361380307,1747534248359,-450.0,0.00014109,2]
[361380308,1747534248368,-450.0,0.00014109,2]
[361380309,1747534248377,-450.0,0.00014109,2]
[361380310,1747534248387,-450.0,0.00014109,2]
[361380311,1747534248396,-272.3496967,0.00014109,2]
[361380327,1747535224307,150.0,0.00025493,31]
[361380328,1747535224613,218.0,0.00025493,31]
[361380329,1747535225412,436.0,0.00025493,31]
[361380330,1747535225773,872.0,0.00025493,31]
[361380331,1747535226477,1743.0,0.00025493,31]
[361380332,1747535226866,2202.0,0.00025493,31]
[361380333,1747535227226,3393.0,0.00025493,31]
[361380334,1747535227592,3487.0,0.00025493,31]
[361380335,1747535227993,5387.0,0.00025493,31]
[361380336,1747535233089,-153.9,0.00012329,2]
[361380338,1747535309156,424.0,0.0002739,120]
[361380340,1747535368096,-294.0,0.00012328,2]
[361380370,1747535432013,-300.0,0.00012328,2]
[361380371,1747535432023,-877.79,0.00012329,2]
[361380372,1747535432033,-1573.01,0.00012329,2]
[361380373,1747535432042,-1310.84,0.00012329,2]
[361380374,1747535432052,-1092.37,0.00012329,2]
[361380375,1747535432061,-910.3,0.00012329,2]
[361380376,1747535432070,-758.59,0.00012329,2]
[361380377,1747535432079,-632.16,0.00012329,2]
[361380378,1747535432088,-632.16,0.00012329,2]
[361380379,1747535432097,-421.44,0.00012329,2]
[361380380,1747535432106,-351.2,0.00012329,2]
[361380381,1747535432118,-292.66,0.00012329,2]
[361380382,1747535432127,-243.89,0.00012329,2]
[361380383,1747535432136,-203.24,0.00012329,2]
[361380384,1747535432145,-169.36,0.00012329,2]
[361380385,1747535432154,-2386.4469476,0.00012443,2]
[361380386,1747535432185,-3327.100277,0.00012443,2]
[361380387,1747535432195,-821.272305,0.00012572,2]
[361380388,1747535432206,-554.10614797,0.00012914,2]
[361380389,1747535432215,-24900.0,0.00012932,2]
[361380390,1747535432224,-382.3698127,0.00013014,2]
[361380391,1747535432234,-4553.99081361,0.00013053,2]
[361380392,1747535432245,-250.0,0.00013294,2]
[361380393,1747535432254,-420.0,0.00013529,2]
[361380394,1747535432263,-342.875922,0.00013673,2]
[361380395,1747535432273,-503.79927742,0.00013673,2]
[361380396,1747535432282,-500.0,0.00013673,2]
[361380397,1747535432291,-503.06070781,0.00013673,2]
[361380398,1747535432301,-501.10866728,0.00013673,2]
[361380399,1747535432310,-503.15602171,0.00013673,2]
[361380400,1747535432319,-505.59828831,0.00013673,2]
[361380401,1747535432329,-413.13837145,0.00013673,2]
[361380402,1747535432338,-503.1389503,0.00013673,2]
[361380403,1747535432347,-505.66842046,0.00013673,2]
[361380404,1747535432356,-270.09773881,0.00013673,2]
[361380405,1747535432366,-504.09063599,0.00013673,2]
[361380406,1747535432376,-504.10609852,0.00013673,2]
[361380407,1747535432385,-500.0,0.00013697,2]
[361380408,1747535432395,-500.0,0.00013697,2]
[361380409,1747535432405,-500.0,0.00013697,2]
[361380410,1747535432417,-500.0,0.00013697,2]
[361380411,1747535432426,-500.0,0.00013697,2]
[361380412,1747535432435,-500.0,0.00013697,2]
[361380413,1747535432444,-614.87196532,0.00013697,2]
[361380414,1747535432454,-500.0,0.00013697,2]
[361380415,1747535432463,-500.0,0.00013697,2]
[361380416,1747535432472,-500.0,0.00013697,2]
[361380417,1747535432481,-500.0,0.00013697,2]
[361380418,1747535432490,-500.0,0.00013697,2]
[361380419,1747535432499,-468.42981732,0.00013697,2]
[361380420,1747535432508,-155.405912,0.00013697,2]
[361380421,1747535432517,-288.32632,0.00013697,2]
[361380422,1747535432526,-288.32632,0.00013697,2]
[361380423,1747535432534,-458.32348441,0.00013698,2]
[361380424,1747535432732,-406.86412562,0.00013698,2]
[361380425,1747535432742,-405.51665021,0.00013698,2]
[361380426,1747535432751,-515.99190755,0.00013698,2]
[361380427,1747535432761,-457.11692498,0.00013698,2]
[361380428,1747535432770,-458.2594612,0.00013698,2]
[361380429,1747535432783,-405.31950861,0.00013698,2]
[361380430,1747535432792,-456.61282738,0.00013698,2]
[361380431,1747535432801,-404.79454427,0.00013698,2]
[361380432,1747535432811,-407.59634751,0.00013698,2]
[361380433,1747535432821,-417.91262611,0.00013698,2]
[361380434,1747535432830,-456.0620865,0.00013698,2]
[361380435,1747535432839,-415.00210593,0.00013698,2]
[361380436,1747535432848,-456.86495759,0.00013698,2]
[361380437,1747535432858,-1037.44658128,0.00013698,2]
[361380438,1747535432868,-322.16755626,0.00013698,2]
[361380439,1747535432877,-404.95167751,0.00013698,2]
[361380440,1747535432887,-412.97171181,0.00013698,2]
[361380441,1747535432896,-414.93424284,0.00013698,2]
[361380442,1747535432905,-412.39810007,0.00013698,2]
[361380443,1747535432914,-414.22076038,0.00013698,2]
[361380444,1747535432924,-421.72134209,0.00013698,2]
[361380445,1747535432933,-438.12037596,0.00013698,2]
[361380446,1747535432944,-420.32986578,0.00013698,2]
[361380447,1747535432953,-450.0,0.00013698,2]
[361380448,1747535432962,-411.07470612,0.00013698,2]
[361380449,1747535432971,-462.97684106,0.00013698,2]
[361380450,1747535432980,-450.0,0.00013698,2]
[361380451,1747535432989,-410.84266433,0.00013698,2]
[361380452,1747535432998,-415.31158358,0.00013698,2]
[361380453,1747535433008,-400.0,0.00013698,2]
[361380454,1747535433017,-402.7727925,0.00013698,2]
[361380455,1747535433027,-450.0,0.00013698,2]
[361380456,1747535433036,-401.90664276,0.00013698,2]
[361380457,1747535433046,-404.05592585,0.00013698,2]
[361380458,1747535433055,-450.0,0.00013698,2]
[361380459,1747535433064,-422.797985,0.00013698,2]
[361380460,1747535433074,-286.27262662,0.00013698,2]
[361380461,1747535433083,-417.97670258,0.00013698,2]
[361380462,1747535433093,-421.73958893,0.00013698,2]
[361380463,1747535433102,-424.31624228,0.00013698,2]
[361380464,1747535433111,-406.23826836,0.00013698,2]
[361380465,1747535433121,-418.52761693,0.00013698,2]
[361380466,1747535433131,-412.02850224,0.00013698,2]
[361380467,1747535433140,-418.82083852,0.00013698,2]
[361380468,1747535433149,-452.96730173,0.00013698,2]
[361380469,1747535433159,-403.13173853,0.00013698,2]
[361380470,1747535433168,-450.0,0.00013698,2]
[361380471,1747535433177,-402.69142742,0.00013698,2]
[361380472,1747535433186,-411.00417813,0.00013698,2]
[361380473,1747535433195,-433.59150618,0.00013698,2]
[361380474,1747535433204,-450.0,0.00013698,2]
[361380475,1747535433214,-411.59686073,0.00013698,2]
[361380476,1747535433223,-472.30148178,0.00013698,2]
[361380477,1747535433232,-450.0,0.00013698,2]
[361380478,1747535433241,-402.53521827,0.00013698,2]
[361380479,1747535433250,-450.0,0.00013698,2]
[361380480,1747535433260,-450.0,0.00013698,2]
[361380481,1747535433269,-450.0,0.00013698,2]
[361380482,1747535433278,-419.72761675,0.00013698,2]
[361380483,1747535433287,-402.75780169,0.00013698,2]
[361380484,1747535433296,-450.0,0.00013698,2]
[361380485,1747535433305,-450.0,0.00013698,2]
[361380486,1747535433315,-419.56969654,0.00013698,2]
[361380487,1747535433324,-505.37440947,0.00013698,2]
[361380488,1747535433334,-450.0,0.00013698,2]
[361380489,1747535433344,-450.0,0.00013698,2]
[361380490,1747535433353,-397.1987788,0.00013698,2]
[361380491,1747535433363,-518.90545499,0.00013698,2]
[361380492,1747535433373,-410.28516822,0.00013698,2]
[361380493,1747535433382,-400.0,0.00013698,2]
[361380494,1747535433391,-401.61719448,0.00013698,2]
[361380495,1747535433400,-400.0,0.00013698,2]
[361380496,1747535433410,-402.94361811,0.00013698,2]
[361380497,1747535433419,-450.0,0.00013698,2]
[361380498,1747535433430,-450.0,0.00013698,2]
[361380499,1747535433439,-401.27672285,0.00013698,2]
[361380500,1747535433449,-450.0,0.00013698,2]
[361380501,1747535433458,-402.41883425,0.00013698,2]
[361380502,1747535433467,-450.0,0.00013698,2]
[361380503,1747535433476,-382.07266737,0.00013698,2]
[361380504,1747535433486,-331.15507534,0.00013698,2]
[361380505,1747535433496,-450.0,0.00013698,2]
[361380506,1747535433506,-450.0,0.00013698,2]
[361380507,1747535433516,-450.0,0.00013698,2]
[361380508,1747535433526,-450.0,0.00013698,2]
[361380509,1747535433535,-414.12336203,0.00013698,2]
[361380510,1747535433544,-401.81167782,0.00013698,2]
[361380511,1747535433553,-360.95113158,0.00013698,2]
[361380512,1747535433562,-450.0,0.00013698,2]
[361380513,1747535433571,-450.0,0.00013698,2]
[361380514,1747535433580,-347.12698007,0.00013698,2]
[361380515,1747535433590,-450.0,0.00013698,2]
[361380516,1747535433599,-410.50668379,0.00013698,2]
[361380517,1747535433610,-450.0,0.00013698,2]
[361380518,1747535433620,-403.74443085,0.00013698,2]
[361380519,1747535433630,-416.23382636,0.00013698,2]
[361380520,1747535433639,-453.07215491,0.00013698,2]
[361380521,1747535433648,-297.4049773,0.00013698,2]
[361380522,1747535433658,-409.49654014,0.00013698,2]
[361380523,1747535433667,-401.53586074,0.00013698,2]
[361380524,1747535433677,-408.14195522,0.00013698,2]
[361380525,1747535433686,-450.0,0.00013698,2]
[361380526,1747535433695,-403.97545771,0.00013698,2]
[361380527,1747535433704,-402.96343212,0.00013698,2]
[361380528,1747535433714,-450.0,0.00013698,2]
[361380529,1747535433723,-450.0,0.00013698,2]
[361380530,1747535433733,-405.53302436,0.00013698,2]
[361380531,1747535433742,-402.56902387,0.00013698,2]
[361380532,1747535433752,-410.66209425,0.00013698,2]
[361380533,1747535433762,-450.0,0.00013698,2]
[361380534,1747535433773,-414.14569362,0.00013698,2]
[361380535,1747535433785,-450.0,0.00013698,2]
[361380536,1747535433795,-450.0,0.00013698,2]
[361380537,1747535433805,-350.8678635,0.00013698,2]
[361380538,1747535433815,-304.91553664,0.00013698,2]
[361380539,1747535433825,-357.47030038,0.00013698,2]
[361380540,1747535433835,-450.0,0.00013698,2]
[361380541,1747535433846,-450.0,0.00013698,2]
[361380542,1747535433859,-450.0,0.00013698,2]
[361380543,1747535433870,-453.69908247,0.00013698,2]
[361380544,1747535433880,-404.82025445,0.00013698,2]
[361380545,1747535433890,-450.0,0.00013698,2]
[361380546,1747535433900,-450.0,0.00013698,2]
[361380547,1747535433910,-451.56211529,0.00013698,2]
[361380548,1747535433920,-450.0,0.00013698,2]
[361380549,1747535433930,-404.68209624,0.00013698,2]
[361380550,1747535433941,-427.11771328,0.00013698,2]
[361380551,1747535433950,-450.0,0.00013698,2]
[361380552,1747535433960,-450.0,0.00013698,2]
[361380553,1747535433970,-352.36533498,0.00013698,2]
[361380554,1747535433979,-450.0,0.00013698,2]
[361380555,1747535433990,-407.73373414,0.00013698,2]
[361380556,1747535433999,-450.0,0.00013698,2]
[361380557,1747535434010,-450.0,0.00013698,2]
[361380558,1747535434019,-454.73281423,0.00013698,2]
[361380559,1747535434028,-450.0,0.00013698,2]
[361380560,1747535434038,-450.0,0.00013698,2]
[361380561,1747535434048,-408.59242071,0.00013698,2]
[361380562,1747535434057,-354.83441587,0.00013698,2]
[361380563,1747535434067,-450.0,0.00013698,2]
[361380564,1747535434076,-404.14173629,0.00013698,2]
[361380565,1747535434087,-416.96866049,0.00013698,2]
[361380566,1747535434097,-453.78592043,0.00013698,2]
[361380567,1747535434107,-404.39140681,0.00013698,2]
[361380568,1747535434117,-409.54606989,0.00013698,2]
[361380569,1747535434127,-407.71464152,0.00013698,2]
[361380570,1747535434136,-402.71754168,0.00013698,2]
[361380571,1747535434146,-450.0,0.00013698,2]
[361380572,1747535434156,-151.0,0.00013698,2]
[361380573,1747535434166,-151.0,0.00013698,2]
[361380574,1747535434175,-151.0,0.00013698,2]
[361380575,1747535434186,-151.0,0.00013698,2]
[361380576,1747535434195,-151.0,0.00013698,2]
[361380577,1747535434205,-410.80283988,0.00013698,2]
[361380578,1747535434215,-151.0,0.00013698,2]
[361380579,1747535434225,-151.0,0.00013698,2]
[361380580,1747535434235,-151.0,0.00013698,2]
[361380581,1747535434244,-151.0,0.00013698,2]
[361380582,1747535434253,-457.20893381,0.00013698,2]
[361380583,1747535434263,-168.059122,0.00013698,2]
[361380584,1747535434273,-415.19397358,0.00013698,2]
[361380585,1747535434282,-402.31267945,0.00013698,2]
[361380586,1747535434292,-402.71450824,0.00013698,2]
[361380587,1747535434301,-406.14012,0.00013698,2]
[361380588,1747535434310,-450.0,0.00013698,2]
[361380589,1747535434320,-452.52206794,0.00013698,2]
[361380590,1747535434330,-451.06491886,0.00013698,2]
[361380591,1747535434339,-412.36294555,0.00013698,2]
[361380592,1747535434349,-313.40174835,0.00013698,2]
[361380593,1747535434358,-452.14384119,0.00013698,2]
[361380594,1747535434368,-450.0,0.00013698,2]
[361380595,1747535434378,-401.8984415,0.00013698,2]
[361380596,1747535434388,-522.41013592,0.00013698,2]
[361380597,1747535434398,-450.0,0.00013698,2]
[361380598,1747535434407,-450.0,0.00013698,2]
[361380599,1747535434417,-450.0,0.00013698,2]
[361380600,1747535434426,-454.26926806,0.00013698,2]
[361380601,1747535434435,-490.08952978,0.00013698,2]
[361380602,1747535434446,-450.0,0.00013698,2]
[361380603,1747535434456,-411.8199038,0.00013698,2]
[361380604,1747535434465,-510.97196613,0.00013698,2]
[361380605,1747535434475,-456.59923875,0.00013698,2]
[361380606,1747535434484,-404.99882837,0.00013698,2]
[361380607,1747535434494,-404.28382579,0.00013698,2]
[361380608,1747535434503,-450.0,0.00013698,2]
[361380609,1747535434513,-450.0,0.00013698,2]
[361380610,1747535434523,-417.97913433,0.00013698,2]
[361380611,1747535434533,-407.23041689,0.00013698,2]
[361380612,1747535434543,-450.0,0.00013698,2]
[361380613,1747535434552,-450.0,0.00013698,2]
[361380614,1747535434562,-450.0,0.00013698,2]
[361380615,1747535434571,-414.02562777,0.00013698,2]
[361380616,1747535434581,-408.90497436,0.00013698,2]
[361380617,1747535434590,-408.76635419,0.00013698,2]
[361380618,1747535434599,-405.15161146,0.00013698,2]
[361380619,1747535434609,-409.82956414,0.00013698,2]
[361380620,1747535434618,-448.89335215,0.00013698,2]
[361380621,1747535434627,-450.0,0.00013698,2]
[361380622,1747535434636,-552.72646131,0.00013698,2]
[361380623,1747535434646,-450.0,0.00013698,2]
[361380624,1747535434655,-450.0,0.00013698,2]
[361380625,1747535434665,-450.0,0.00013698,2]
[361380626,1747535434674,-403.14301129,0.00013698,2]
[361380627,1747535434683,-404.45666876,0.00013698,2]
[361380628,1747535434692,-271.60993285,0.00013698,2]
[361380629,1747535434702,-450.0,0.00013698,2]
[361380630,1747535434711,-402.1124176,0.00013698,2]
[361380631,1747535434720,-456.23099047,0.00013698,2]
[361380632,1747535434729,-401.75505417,0.00013698,2]
[361380633,1747535434739,-450.0,0.00013698,2]
[361380634,1747535434749,-450.0,0.00013698,2]
[361380635,1747535434758,-450.0,0.00013698,2]
[361380636,1747535434767,-416.46724468,0.00013698,2]
[361380637,1747535434780,-454.92717034,0.00013698,2]
[361380638,1747535434790,-200.97508311,0.00013698,2]
[361380639,1747535434799,-410.05892903,0.00013698,2]
[361380640,1747535434808,-403.18205647,0.00013698,2]
[361380641,1747535434818,-406.26785376,0.00013698,2]
[361380642,1747535434827,-403.39109393,0.00013698,2]
[361380643,1747535434837,-453.91646313,0.00013698,2]
[361380644,1747535434847,-405.89545504,0.00013698,2]
[361380645,1747535434857,-404.17608192,0.00013698,2]
[361380646,1747535434868,-456.29504576,0.00013698,2]
[361380647,1747535434877,-454.92680083,0.00013698,2]
[361380648,1747535434887,-410.00503629,0.00013698,2]
[361380649,1747535434896,-495.36112201,0.00013698,2]
[361380650,1747535434906,-415.62580512,0.00013698,2]
[361380651,1747535434915,-410.05107868,0.00013698,2]
[361380652,1747535434924,-407.36378751,0.00013698,2]
[361380653,1747535434933,-586.60543917,0.00013698,2]
[361380654,1747535434943,-418.20619006,0.00013698,2]
[361380655,1747535434952,-450.0,0.00013698,2]